bitfinex-derivatives/quotes_ETHF0:USTF0_20250804
["timestamp","ask_amount","ask_price","bid_price","bid_amount"]
[1754296915951,19.516,3556.9,3556.8,3.77005]
[1754296918253,19.516,3556.9,3556.8,3.2078]
[1754296920453,3.2078,3557.4,3556.8,3.2078]
[1754296920454,3.2078,3557.4,3557.2,0.56218]
[1754296920658,19.514,3557.3,3557.2,0.56218]
[1754296921553,3.2078,3557.4,3557.2,0.56218]
[1754296921752,19.513,3557.4,3557.3,3.2078]
[1754296921949,19.513,3557.4,3557.3,3.76997]
[1754296922154,19.512,3557.5,3557.4,0.56215]
[1754296922554,20.07415,3557.5,3557.3,3.2078]
[1754296922756,20.07415,3557.5,3557.3,3.76996]
[1754296923662,20.07415,3557.5,3556.9,3.2078]
[1754296923663,0.56222,3557.1,3556.9,3.2078]
[1754296923852,0.56226,3556.8,3556.5,3.2078]
[1754296924257,0.56225,3556.9,3556.8,0.56225]
[1754296924961,0.56227,3556.8,3556.6,0.56227]
[1754296925364,0.56225,3556.9,3556.8,0.56225]
[1754296925666,0.56228,3556.7,3556.5,3.7701]
[1754296926762,0.56224,3556.9,3556.8,0.56225]
[1754296927068,0.56227,3556.8,3556.7,0.56226]
[1754296928370,0.56229,3556.7,3556.6,0.56228]
[1754296928862,0.56229,3556.7,3556.5,3.2078]
[1754296929062,19.51,3556.6,3556.5,3.2078]
[1754296929268,19.51,3556.6,3556.0,3.2078]
[1754296929269,0.56235,3556.2,3556.0,3.2078]
[1754296929469,19.51,3556.1,3556.0,3.2078]
[1754296934474,0.56247,3555.5,3555.4,3.2078]
[1754296935473,0.56255,3554.9,3554.8,3.77036]
[1754296935774,20.07255,3554.9,3554.8,3.77037]
[1754296935977,19.51,3554.9,3554.8,3.2078]
[1754296936967,0.56263,3554.4,3554.3,3.2078]
[1754296937168,20.07363,3554.4,3554.3,3.2078]
[1754296937776,0.56271,3554.0,3553.8,3.2078]
[1754296937978,19.511,3553.9,3553.8,3.2078]
[1754296941883,0.56273,3553.8,3553.3,3.7706]
[1754296942088,19.511,3553.9,3553.5,0.56278]
[1754296942280,19.511,3553.9,3553.4,0.56279]
[1754296942581,3.2078,3554.0,3553.6,0.56275]
[1754296942785,19.514,3553.9,3553.6,0.56275]
[1754296943083,19.514,3553.8,3553.6,0.56275]
[1754296943483,20.07674,3553.8,3553.6,0.56275]
[1754296943681,0.56274,3553.8,3553.6,0.56275]
[1754296943979,19.516,3553.7,3553.6,0.56275]
[1754296944182,20.07875,3553.7,3553.4,0.56278]
[1754296944384,19.516,3553.7,3553.3,3.2078]
[1754296944584,0.56276,3553.6,3553.3,3.2078]
[1754296944986,20.07875,3553.7,3553.4,0.56279]
[1754296945185,20.07875,3553.7,3553.5,0.56276]
[1754296945384,19.516,3553.7,3553.5,0.56276]
[1754296945889,19.516,3553.6,3553.5,0.56276]
[1754296946187,19.518,3553.6,3553.5,0.56276]
[1754296946789,0.56278,3553.5,3553.4,0.56279]
[1754296946984,20.08077,3553.6,3553.3,3.2078]
[1754296947184,19.518,3553.6,3553.3,3.2078]
[1754296947384,0.56278,3553.5,3553.3,3.7706]
[1754296947986,20.08077,3553.6,3553.5,0.56278]
[1754296948183,20.08077,3553.6,3553.3,3.2078]
[1754296948184,20.08077,3553.6,3553.4,0.56278]
[1754296948385,0.56279,3553.4,3553.3,3.7706]
[1754296948882,20.08077,3553.6,3553.4,0.56278]
[1754296949181,0.56271,3553.9,3553.8,0.56272]
[1754296949388,0.56275,3553.7,3553.3,3.2078]
[1754296950290,0.56274,3553.8,3553.3,3.2078]
[1754296950491,0.5627,3554.0,3553.9,0.56271]
[1754296950790,20.0807,3554.0,3553.9,0.56271]
[1754296951395,0.5627,3554.0,3553.9,0.56271]
[1754296951589,0.5627,3554.0,3553.4,1.40699]
[1754296951590,40.505,3554.3,3554.1,0.56267]
[1754296951891,19.518,3554.2,3554.1,0.56267]
[1754296952391,0.56268,3554.1,3554.0,0.56269]
[1754296952591,19.518,3554.2,3553.4,1.40697]
[1754296952793,0.56274,3553.8,3553.7,0.56273]
[1754296953291,0.56274,3553.8,3553.3,3.2078]
[1754296953292,4.61459,3554.0,3553.3,3.2078]
[1754296953487,0.56273,3553.8,3553.7,0.56273]
[1754296954589,20.08172,3553.9,3553.7,0.56273]
[1754296954786,19.519,3553.9,3553.7,0.56273]
[1754296954986,0.5627,3554.0,3553.9,0.56271]
[1754296955189,20.0817,3554.0,3553.9,0.56271]
[1754296955788,0.56273,3553.9,3553.8,0.56272]
[1754296956088,1.40679,3553.9,3553.3,3.2078]
[1754296956289,0.56279,3553.5,3553.4,0.56278]
[1754296956488,19.518,3553.5,3553.4,0.56278]
[1754296959587,19.518,3553.5,3553.4,0.56279]
[1754296961495,3.2078,3554.0,3553.8,0.56273]
[1754296961695,0.56267,3554.2,3554.0,0.56268]
[1754296961895,19.517,3554.1,3554.0,0.56268]
[1754296962095,20.28096514,3554.1,3554.0,0.56268]
[1754296963101,0.56273,3553.9,3553.7,3.2078]
[1754296963293,0.76396514,3554.0,3553.9,0.56271]
[1754296963592,0.56271,3553.9,3553.8,0.56272]
[1754296964198,0.76396514,3553.9,3553.8,0.56272]
[1754296966493,0.93218399,3553.9,3553.8,0.56272]
[1754296967098,0.76396514,3553.9,3553.8,0.56272]
[1754296968102,0.56273,3553.8,3553.7,3.2078]
[1754296968297,20.84169514,3553.8,3553.7,3.2078]
[1754296969298,21.01015528,3553.8,3553.7,3.2078]
[1754296969499,20.84169514,3553.8,3553.7,3.2078]
[1754296970602,20.27896514,3553.8,3553.7,3.2078]
[1754296971296,20.44756824,3553.8,3553.7,3.2078]
[1754296972500,20.4475977,3553.8,3553.7,3.2078]
[1754296972899,0.56277,3553.6,3553.5,0.56276]
[1754296973102,1.32673514,3553.6,3553.5,0.56276]
[1754296973699,0.76396514,3553.6,3553.5,0.56276]
[1754296974401,0.56278,3553.5,3553.4,0.56278]
[1754296974600,20.83874514,3553.5,3553.4,0.56278]
[1754296974801,20.83874514,3553.5,3553.3,3.2078]
[1754296974999,0.76396514,3553.4,3553.3,3.2078]
[1754296976103,0.76396514,3553.4,3553.3,3.7706]
[1754296976302,20.27596514,3553.4,3553.3,3.7706]
[1754296977698,20.27596514,3553.4,3553.3,3.2078]
[1754296978502,21.68298514,3553.4,3553.0,0.56284]
[1754296978703,0.56282,3553.2,3553.1,0.56283]
[1754296978898,0.56285,3553.1,3552.9,4.22104252]
[1754296979103,19.511,3553.0,3552.9,4.22104252]
[1754296979302,20.28016307,3553.0,3552.9,4.22104252]
[1754296979710,21.28665607,3553.0,3552.9,1.01324252]
[1754296979907,20.28016307,3553.0,3552.9,1.01324252]
[1754296981103,21.79012967,3553.0,3552.9,1.01324252]
[1754296981305,20.28016307,3553.0,3552.9,1.01324252]
[1754296981705,20.44888037,3553.0,3552.9,1.01324252]
[1754296982102,0.56298,3552.2,3552.1,3.2078]
[1754296982314,20.07398,3552.2,3552.1,3.2078]
[1754296982516,20.84314307,3552.2,3552.1,3.2078]
[1754296983309,20.84135708,3552.2,3552.1,3.2078]
[1754296983618,3.2078,3552.7,3552.1,3.2078]
[1754296983816,0.56295,3552.5,3552.4,0.56294]
[1754296984010,0.56295,3552.5,3552.1,3.2078]
[1754296984011,0.93588506,3552.5,3552.3,0.56296]
[1754296984313,19.511,3552.9,3552.7,0.5629]
[1754296984516,0.56285,3553.1,3552.9,0.56286]
[1754296984821,19.6793578,3553.0,3552.9,0.56286]
[1754296985513,19.511,3553.0,3552.9,0.56286]
[1754296986219,20.07387,3553.0,3552.8,0.56288]
[1754296986519,19.511,3553.0,3552.8,0.56288]
[1754296987517,4.61475,3553.5,3552.8,0.56288]
[1754296987518,0.56275,3553.7,3553.5,0.56276]
[1754296987818,19.512,3553.6,3553.5,0.56276]
[1754296988517,0.56278,3553.5,3553.0,3.2078]
[1754296988717,0.5628,3553.4,3553.3,0.56279]
[1754296988917,0.5628,3553.4,3553.2,0.56281]
[1754296989115,19.511,3553.3,3553.2,0.56281]
[1754296989507,19.511,3553.3,3552.6,3.2078]
[1754296989708,19.511,3553.3,3553.1,0.56283]
[1754296989913,43.7298,3553.9,3553.1,1.4071]
[1754296990115,0.56275,3553.7,3553.5,0.56276]
[1754296990317,0.73096079,3553.7,3553.5,0.56276]
[1754296991214,0.93505226,3553.7,3553.0,3.2078]
[1754296991422,0.16821079,3553.6,3553.0,3.2078]
[1754296991614,0.56283,3553.2,3553.0,3.77064]
[1754296991814,19.51,3553.1,3553.0,0.56284]
[1754296992218,0.56286,3553.0,3552.9,0.56286]
[1754296992519,20.07285,3553.1,3553.0,0.56286]
[1754296993626,0.56288,3552.9,3552.8,0.56287]
[1754296993920,0.56288,3552.9,3552.6,3.2078]
[1754296993921,0.5629,3552.8,3552.6,3.2078]
[1754296994115,19.51,3552.7,3552.6,3.77071]
[1754296995920,19.51,3552.7,3552.6,3.2078]
[1754296998020,0.56281,3553.3,3553.2,0.56282]
[1754296998222,0.56285,3553.1,3553.0,0.56284]
[1754296998719,0.56283,3553.2,3553.0,0.56284]
[1754296999618,0.5629,3552.8,3552.7,0.56289]
[1754296999823,19.509,3552.8,3552.7,0.5629]
[1754297006326,20.0719,3552.8,3552.6,3.77071]
[1754297007225,20.0719,3552.8,3552.6,3.2078]
[1754297008128,20.0719,3552.8,3552.6,3.77071]
[1754297009634,20.0719,3552.8,3552.6,3.2078]
[1754297010441,0.93734958,3552.7,3552.6,3.2078]
[1754297011235,0.93734958,3552.7,3552.1,0.56299]
[1754297011236,0.56292,3552.6,3552.1,3.77079]
[1754297011437,0.56298,3552.2,3552.1,3.2078]
[1754297011638,20.06798,3552.2,3552.1,3.2078]
[1754297011939,1.40752,3552.1,3551.7,3.2078]
[1754297012442,0.56305,3551.8,3551.7,3.2078]
[1754297012645,19.506,3551.8,3551.7,3.2078]
[1754297013847,0.56312,3551.4,3551.3,3.2078]
[1754297014139,19.506,3551.8,3551.3,3.2078]
[1754297014443,0.56309,3551.6,3551.4,0.56311]
[1754297015034,0.5631,3551.5,3551.4,0.56311]
[1754297015241,20.0701,3551.5,3551.4,0.56311]
[1754297015446,19.507,3551.5,3551.3,4.61562]
[1754297015742,19.507,3551.6,3551.5,0.56309]
[1754297016140,0.56299,3552.2,3552.1,0.563]
[1754297016541,19.506,3552.2,3552.1,0.563]
[1754297016743,19.67464745,3552.2,3552.1,0.563]
[1754297016942,0.563,3552.1,3552.0,0.563]
[1754297017652,20.06899,3552.2,3552.0,0.563]
[1754297019243,0.56301,3552.1,3551.9,0.56302]
[1754297019453,20.06899,3552.2,3552.0,0.56301]
[1754297021253,0.56303,3552.0,3551.9,0.56302]
[1754297021453,0.56305,3551.8,3551.7,3.2078]
[1754297021752,0.56308,3551.6,3551.5,0.56308]
[1754297022945,0.56305,3551.8,3551.6,0.56306]
[1754297023146,0.56304,3551.9,3551.8,0.56304]
[1754297023342,20.06804,3551.9,3551.8,0.56304]
[1754297023951,0.56305,3551.8,3551.7,0.56305]
[1754297024150,0.5631,3551.5,3551.3,3.2078]
[1754297024354,19.506,3551.4,3551.3,3.2078]
[1754297025055,19.506,3551.4,3550.0,1.40832]
[1754297025056,0.56319,3550.9,3550.8,3.2078]
[1754297025248,19.505,3550.9,3550.8,3.771]
[1754297027355,19.505,3550.9,3550.8,3.2078]
[1754297032256,3.2078,3551.9,3550.9,1.40797]
[1754297032460,0.563,3552.1,3552.0,0.56301]
[1754297032654,0.56302,3552.0,3551.9,0.56302]
[1754297032851,0.1682628,3552.0,3551.9,3.77082]
[1754297033253,0.56299,3552.2,3552.1,0.563]
[1754297033454,0.56301,3552.1,3552.0,0.56301]
[1754297034062,20.06998,3552.2,3552.0,0.56301]
[1754297034559,19.507,3552.2,3551.6,0.56307]
[1754297034765,3.2078,3551.8,3550.9,0.56318]
[1754297034956,0.56316,3551.1,3550.9,0.56318]
[1754297035156,19.506,3551.0,3550.9,0.56318]
[1754297036060,20.06918,3551.0,3550.8,0.56319]
[1754297037957,19.506,3551.0,3550.8,0.56319]
[1754297038452,0.5632,3550.8,3550.7,3.2078]
[1754297040760,0.56327,3550.4,3550.3,3.2078]
[1754297040965,20.06727,3550.4,3550.3,3.2078]
[1754297043960,0.56332,3550.1,3549.9,1.01409879]
[1754297044163,19.504,3550.0,3549.9,1.01409879]
[1754297047059,0.56332,3550.1,3549.9,1.01409879]
[1754297047264,19.505,3550.0,3549.9,1.57742879]
[1754297047569,19.505,3550.0,3549.9,1.01409879]
[1754297049059,19.506,3550.0,3549.9,1.57744879]
[1754297050164,0.56329,3550.3,3550.2,0.5633]
[1754297050372,0.56329,3550.3,3549.9,1.01409879]
[1754297050373,0.56327,3550.4,3549.9,1.01409879]
[1754297050564,19.505,3550.3,3549.9,1.01409879]
[1754297050765,0.56333,3550.1,3549.9,1.01409879]
[1754297051063,19.505,3550.0,3549.9,1.01409879]
[1754297051267,19.505,3550.0,3549.9,1.57743879]
[1754297052966,19.505,3550.0,3549.9,1.01409879]
[1754297056275,0.56332,3550.1,3550.0,0.56333]
[1754297056477,20.06832,3550.1,3550.0,0.56333]
[1754297056879,0.56327,3550.4,3550.3,0.56327]
[1754297057176,0.56344,3549.4,3549.2,3.77125]
[1754297057379,19.505,3549.3,3549.2,3.77125]
[1754297057676,19.505,3549.3,3549.2,3.2078]
[1754297059665,0.56344,3549.4,3549.2,3.77125]
[1754297059870,19.504,3549.3,3549.2,3.2078]
[1754297060375,19.504,3549.3,3549.2,3.77125]
[1754297062371,0.56338,3549.7,3549.2,3.2078]
[1754297062672,19.505,3549.6,3549.4,0.56343]
[1754297063175,0.56335,3549.9,3549.8,0.56336]
[1754297063373,19.506,3549.9,3549.8,0.56336]
[1754297065177,40.559,3550.0,3549.8,0.56336]
[1754297065373,19.505,3549.9,3549.8,0.56336]
[1754297065574,40.559,3550.0,3549.8,0.56336]
[1754297065773,1.01023808,3550.5,3550.3,0.56328]
[1754297065978,19.505,3550.4,3550.3,0.56328]
[1754297066173,20.27136781,3550.4,3550.3,0.56328]
[1754297066776,19.505,3550.4,3550.3,0.56328]
[1754297068271,19.505,3550.4,3550.2,3.2078]
[1754297068272,20.26893388,3550.4,3550.2,3.2078]
[1754297068571,19.505,3550.4,3550.2,3.2078]
[1754297069580,19.505,3550.4,3550.2,3.77109]
[1754297074981,0.56319,3550.9,3550.8,0.5632]
[1754297075182,20.9948305,3550.9,3550.8,0.5632]
[1754297075379,20.82836152,3550.9,3550.8,0.5632]
[1754297075580,20.994806,3550.9,3550.8,0.5632]
[1754297075780,20.23063448,3550.9,3550.8,0.5632]
[1754297076272,20.06419,3550.9,3550.8,0.5632]
[1754297076684,0.56319,3550.9,3550.8,0.5632]
[1754297076980,20.06419,3550.9,3550.8,0.5632]
[1754297077180,0.56322,3550.8,3550.7,0.56321]
[1754297078285,0.56323,3550.7,3550.6,0.56322]
[1754297078785,0.56321,3550.8,3550.7,0.56321]
[1754297079087,20.0642,3550.9,3550.7,0.56321]
[1754297079383,19.501,3550.9,3550.7,0.56321]
[1754297079577,41.12618,3551.0,3550.9,0.56319]
[1754297079780,60.62518,3551.0,3550.9,0.56319]
[1754297080385,0.56331,3550.2,3550.0,0.56332]
[1754297080587,1.40802,3550.8,3550.4,0.56327]
[1754297080588,3.97112692,3550.5,3550.4,0.56327]
[1754297080780,3.97112692,3550.5,3549.7,3.2078]
[1754297080781,19.499,3550.5,3550.3,0.56328]
[1754297080981,20.06226,3550.5,3550.2,0.56329]
[1754297081185,20.06226,3550.5,3550.1,3.7711]
[1754297081480,22.7068,3550.5,3549.7,3.2078]
[1754297081881,0.7634076,3550.4,3549.7,3.2078]
[1754297082183,0.56335,3549.9,3549.7,3.2078]
[1754297082381,19.499,3549.8,3549.7,3.2078]
[1754297087086,0.56345,3549.3,3549.1,3.2078]
[1754297087286,19.5,3549.2,3549.1,3.2078]
[1754297087682,19.5,3549.2,3549.1,3.77126]
[1754297088989,19.5,3549.2,3549.1,3.2078]
[1754297092485,0.56343,3549.4,3549.3,0.56344]
[1754297092791,19.5,3549.4,3549.3,0.56344]
[1754297092992,0.56344,3549.3,3549.1,3.77126]
[1754297093297,0.56346,3549.3,3549.2,0.56345]
[1754297095100,20.06346,3549.3,3549.2,0.56345]
[1754297097000,19.501,3549.3,3549.2,0.56345]
[1754297098290,1.01023808,3550.9,3550.7,0.56322]
[1754297098594,0.56306,3551.7,3551.0,1.40794]
[1754297098795,0.56306,3551.7,3550.8,3.2078]
[1754297098796,20.15206,3551.8,3551.6,3.2078]
[1754297098993,19.74361612,3551.7,3551.6,3.2078]
[1754297099397,0.15361612,3551.7,3551.6,3.77088]
[1754297099598,19.74061612,3551.7,3551.6,3.77088]
[1754297102002,19.587,3551.7,3551.6,3.77088]
[1754297103308,43.7718,3552.6,3552.4,0.56294]
[1754297103499,19.57,3552.5,3552.4,0.56294]
[1754297105004,19.57,3552.5,3552.2,3.2078]
[1754297105005,4.2078,3553.0,3552.6,0.56292]
[1754297105207,19.573,3552.9,3552.7,0.56289]
[1754297109803,19.573,3552.9,3552.6,3.77071]
[1754297110203,20.13588,3552.9,3552.7,0.56289]
[1754297110604,0.5629,3552.8,3552.6,3.77071]
[1754297111115,20.13588,3552.9,3552.7,0.56289]
[1754297111305,19.573,3552.9,3552.7,0.56289]
[1754297112309,20.13588,3552.9,3552.7,0.56289]
[1754297112510,20.13588,3552.9,3552.6,3.2078]
[1754297112511,0.5629,3552.7,3552.6,3.2078]
[1754297112911,0.56296,3552.4,3552.3,0.56296]
[1754297113215,20.09496,3552.4,3552.2,0.56297]
[1754297114014,19.532,3552.4,3552.2,0.56297]
[1754297114215,20.09496,3552.4,3552.2,0.56297]
[1754297114816,19.532,3552.4,3552.2,0.56297]
[1754297115014,20.09496,3552.4,3552.2,0.56297]
[1754297116012,19.532,3552.4,3552.2,0.56297]
[1754297117720,20.09495,3552.4,3552.2,0.56297]
[1754297118617,19.532,3552.4,3552.2,0.56297]
[1754297118813,20.09496,3552.4,3552.2,0.56297]
[1754297119014,19.532,3552.4,3552.2,0.56297]
[1754297121322,19.502,3552.3,3552.2,0.56298]
[1754297121524,1.56287,3553.0,3552.8,0.56287]
[1754297121824,19.502,3552.9,3552.8,0.56287]
[1754297122616,20.06488,3552.9,3552.7,0.5629]
[1754297123221,19.502,3552.9,3552.7,0.5629]
[1754297123922,20.06488,3552.9,3552.7,0.5629]
[1754297124124,1.56286,3553.0,3552.9,0.56287]
[1754297124323,0.56289,3552.9,3552.5,3.2078]
[1754297124523,0.56289,3552.8,3552.7,0.56289]
[1754297124821,0.56291,3552.7,3552.5,3.77072]
[1754297125022,19.492,3552.6,3552.5,3.77072]
[1754297128515,19.492,3552.6,3551.8,0.56304]
[1754297128516,1.40734,3552.5,3551.8,0.56304]
[1754297128718,0.56302,3552.0,3551.8,0.56303]
[1754297128914,19.524,3551.9,3551.7,3.77085]
[1754297129627,20.08704,3551.9,3551.7,3.77085]
[1754297129814,20.08704,3551.9,3551.7,3.2078]
[1754297131728,0.76442936,3551.8,3551.7,3.2078]
[1754297132331,0.56311,3551.4,3551.3,3.2078]
[1754297132523,20.07911,3551.4,3551.3,3.2078]
[1754297134827,19.516,3551.4,3551.3,3.2078]
[1754297137227,0.56319,3550.9,3550.8,3.2078]
[1754297137428,20.06819,3550.9,3550.8,3.2078]
[1754297138122,0.56333,3550.0,3549.9,3.2078]
[1754297138428,20.06933,3550.0,3549.9,3.2078]
[1754297138627,19.506,3550.0,3549.8,0.56335]
[1754297139028,0.56326,3550.5,3549.9,3.2078]
[1754297139231,19.515,3550.4,3549.9,3.2078]
[1754297139420,20.07828,3550.4,3550.2,0.56329]
[1754297139623,0.56333,3550.1,3549.9,3.2078]
[1754297139928,3.2078,3550.7,3550.0,1.40833]
[1754297140227,0.56326,3550.5,3550.3,3.77107]
[1754297140428,19.516,3550.4,3550.3,3.77107]
[1754297141730,0.56323,3550.7,3550.3,3.2078]
[1754297142031,19.52,3550.4,3550.3,3.77108]
[1754297142829,19.52,3550.4,3550.3,3.2078]
[1754297144132,0.56336,3549.8,3549.7,3.2078]
[1754297144331,19.515,3549.8,3549.7,3.2078]
[1754297149739,19.507,3549.8,3549.7,3.77118]
[1754297150237,0.56329,3550.3,3550.1,0.56331]
[1754297150536,19.506,3550.2,3550.1,0.56331]
[1754297150737,0.56329,3550.3,3550.1,0.56331]
[1754297150936,19.505,3550.2,3550.1,0.56331]
[1754297151434,0.56334,3550.0,3549.9,0.56334]
[1754297151734,0.56332,3550.1,3549.9,0.56334]
[1754297152237,19.501,3550.0,3549.9,0.56334]
[1754297153131,0.56331,3550.2,3550.1,0.56331]
[1754297153332,0.56334,3550.0,3549.9,0.56334]
[1754297153832,19.502,3550.0,3549.9,0.56334]
[1754297156037,19.502,3550.0,3549.8,0.56336]
[1754297157637,20.06534,3550.0,3549.8,0.56336]
[1754297160039,0.56336,3549.8,3549.7,3.2078]
[1754297160638,19.503,3549.8,3549.7,3.2078]
[1754297161137,19.503,3549.8,3549.7,3.77118]
[1754297164342,0.56335,3549.9,3549.7,3.77118]
[1754297164542,19.503,3549.8,3549.7,3.2078]
[1754297166444,20.26679455,3549.8,3549.7,3.2078]
[1754297170043,0.76379455,3549.8,3549.7,3.2078]
[1754297170345,20.26679455,3549.8,3549.7,3.2078]
[1754297171348,0.76379455,3549.8,3549.7,3.2078]
[1754297171555,4.55e-06,3549.8,3549.7,3.2078]
[1754297171740,19.503,3550.9,3550.8,0.5632]
[1754297171938,19.503,3550.9,3550.8,3.771]
[1754297172545,19.503,3550.9,3550.8,3.2078]
[1754297174347,0.56325,3550.6,3550.3,0.56327]
[1754297174547,20.06426,3550.5,3550.3,0.56327]
[1754297174845,0.56328,3550.3,3550.2,0.56329]
[1754297175050,0.56331,3550.2,3550.0,3.77112]
[1754297175250,19.501,3550.1,3550.0,3.77112]
[1754297175449,19.501,3550.1,3550.0,3.2078]
[1754297176651,0.56333,3550.0,3549.7,0.56338]
[1754297176852,0.56338,3549.8,3549.6,0.56338]
[1754297177150,19.501,3549.7,3549.6,0.56338]
[1754297177350,19.501,3549.7,3549.5,0.5634]
[1754297177552,19.501,3549.7,3549.6,3.2078]
[1754297178249,19.501,3549.7,3549.6,3.77119]
[1754297178956,19.501,3549.7,3549.6,3.2078]
[1754297180842,20.06438,3549.7,3549.2,3.2078]
[1754297181047,0.56341,3549.6,3549.4,0.56341]
[1754297182052,19.501,3549.7,3549.6,0.56339]
[1754297182449,0.56339,3549.6,3549.2,3.2078]
[1754297182656,0.56343,3549.4,3549.3,0.56344]
[1754297183053,0.56342,3549.5,3549.3,0.56344]
[1754297183858,19.501,3549.7,3549.2,3.77124]
[1754297184048,0.56335,3549.9,3549.4,0.56342]
[1754297184249,19.502,3549.8,3549.4,0.56342]
[1754297184651,0.56337,3549.8,3549.5,0.5634]
[1754297184851,19.502,3549.7,3549.5,0.5634]
[1754297185652,3.2078,3550.0,3549.2,4.61644]
[1754297185852,3.2078,3550.0,3549.7,0.56338]
[1754297185853,19.502,3549.9,3549.7,0.56338]
[1754297186052,0.56332,3550.1,3549.7,0.56338]
[1754297186252,0.56331,3550.2,3550.0,0.56332]
[1754297186452,20.06532,3550.1,3549.9,0.56334]
[1754297186651,19.502,3550.1,3549.9,0.56334]
[1754297187252,20.06532,3550.1,3549.9,0.56334]
[1754297187652,0.56335,3549.9,3549.8,0.56335]
[1754297188152,19.502,3550.1,3550.0,0.56333]
[1754297188660,0.56329,3550.3,3550.2,0.56329]
[1754297188857,0.56329,3550.3,3549.6,4.61626]
[1754297188858,20.26226949,3550.3,3549.6,4.61626]
[1754297189056,0.5633,3550.2,3550.0,0.56332]
[1754297190961,19.501,3550.1,3550.0,3.77113]
[1754297191564,40.559,3550.5,3550.4,0.56327]
[1754297191763,60.06,3550.5,3550.4,0.56327]
[1754297192352,40.559,3550.5,3550.4,0.56327]
[1754297192553,3.2078,3551.2,3551.1,0.56316]
[1754297192752,1.01023808,3551.6,3551.4,0.56311]
[1754297192957,19.501,3551.5,3551.4,0.56311]
[1754297194061,1.01023808,3552.7,3552.5,0.56293]
[1754297194361,19.5,3552.6,3552.3,3.2078]
[1754297194555,3.2078,3552.5,3552.0,3.2078]
[1754297194755,19.5,3552.6,3552.0,3.2078]
[1754297195060,0.56293,3552.5,3552.2,0.56297]
[1754297195258,19.498,3552.4,3552.0,3.2078]
[1754297195764,19.498,3552.4,3552.3,0.56297]
[1754297196366,42.563,3553.5,3552.8,0.56287]
[1754297196560,19.498,3552.9,3552.8,0.56287]
[1754297197359,42.563,3553.5,3552.8,0.56287]
[1754297197562,19.498,3553.1,3552.9,3.2078]
[1754297200966,19.498,3553.1,3552.9,3.77067]
[1754297204674,19.498,3553.1,3552.9,0.56287]
[1754297207670,4.2078,3553.0,3552.8,0.56287]
[1754297207867,4.77066,3553.0,3552.8,0.56287]
[1754297208862,4.77066,3553.0,3552.4,3.2078]
[1754297208863,0.56288,3552.9,3552.7,0.56289]
[1754297209065,19.486,3552.8,3552.7,0.56289]
[1754297209366,0.56291,3552.7,3552.5,0.56293]
[1754297209572,19.486,3552.8,3552.4,3.2078]
[1754297210475,19.486,3552.8,3552.6,0.56291]
[1754297211275,20.04889,3552.8,3552.6,0.56291]
[1754297211668,4.2078,3553.0,3552.9,0.56287]
[1754297211870,20.485,3553.0,3552.9,0.56287]
[1754297212376,0.56287,3552.9,3552.8,0.56288]
[1754297213666,20.485,3553.0,3552.8,0.56288]
[1754297213866,21.04786,3553.0,3552.8,0.56288]
[1754297214061,1.56286,3553.0,3552.8,0.56288]
[1754297214269,19.485,3552.9,3552.8,0.56288]
[1754297214968,20.04788,3552.9,3552.7,0.56289]
[1754297215680,1.56287,3553.0,3552.8,0.56287]
[1754297215880,0.56288,3552.9,3552.7,0.56289]
[1754297216169,19.484,3552.8,3552.7,0.56289]
[1754297217878,1.0,3553.0,3552.9,0.56287]
[1754297218078,20.484,3553.0,3552.9,0.56287]
[1754297218479,1.0,3553.0,3552.9,0.56287]
[1754297218681,20.484,3553.0,3552.9,0.56287]
[1754297218882,1.0,3553.0,3552.9,0.56287]
[1754297219181,20.483,3553.0,3552.9,0.56287]
[1754297219675,1.0,3553.0,3552.9,0.56287]
[1754297221370,0.42128,3553.0,3552.9,0.56287]
[1754297221575,2.0,3553.5,3552.9,0.56287]
[1754297221576,2.0,3553.5,3553.4,0.56279]
[1754297221776,2.0,3553.5,3553.4,3.77059]
[1754297233284,2.0,3553.5,3553.4,3.2078]
[1754297250011,43.7398,3554.5,3554.4,0.56263]
[1754297250012,40.532,3554.5,3554.4,0.56263]
[1754297250217,61.47052776,3554.5,3554.4,0.56263]
[1754297250416,41.44087896,3554.5,3554.4,0.56263]
[1754297250613,60.90787896,3554.5,3554.4,0.56263]
[1754297251011,20.37587896,3554.5,3554.4,0.56263]
[1754297251208,20.22898414,3554.5,3554.4,0.56263]
[1754297252309,20.79161414,3554.5,3554.3,3.2078]
[1754297252515,0.76198414,3554.4,3554.3,3.2078]
[1754297255210,20.02963,3554.5,3554.3,3.2078]
[1754297255821,19.464,3554.4,3554.3,3.2078]
[1754297259025,19.462,3554.4,3554.3,3.2078]
[1754297261528,0.56278,3553.6,3553.5,3.77057]
[1754297261820,0.76125121,3554.2,3554.0,0.56268]
[1754297262127,19.461,3554.1,3554.0,0.56268]
[1754297262525,0.5627,3554.0,3553.9,3.2078]
[1754297262728,19.461,3554.1,3554.0,0.5627]
[1754297264723,41.52423808,3554.9,3554.0,0.5627]
[1754297264724,41.52423808,3554.9,3554.0,1.40675]
[1754297265030,41.52423808,3554.9,3554.6,0.56259]
[1754297265031,0.90783633,3554.8,3554.6,0.56259]
[1754297265326,0.90783633,3554.7,3554.6,0.56259]